Cogmind - Beta 11.1 @@@ ROGUE MODE // 2022.04.23 @ 12:59:07 Player: Demise Result: Destroyed by as-61238 with Assembled Heavy Rifle Performance ------------- Evolutions (0) 0 Regions Visited (2) 400 Robots Destroyed (24) 120 Value Destroyed (661) 661 Prototype IDs (2) 40 Alien Tech Used (0) 0 Bonus (0) 0 TOTAL SCORE: 1221 Bonus ------- None Cogmind --------- Core Integrity 0/250 Matter 265/300 Energy 96/100 System Corruption 0% Temperature Cool (2) Movement Treading (240) Ox1 Location -10/Mines Parts ------- > --- POWER (1) -------- (None) > --- PROPULSION (2) --- Light Treads > --- UTILITY (2) ------ Large Storage Unit Signal Interpreter > --- WEAPON (2) ------- Light Assault Rifle > --- INVENTORY (15) --- Light Nuclear Core Light Treads Improved Heat Sink Medium Storage Unit High-capacity Matter Pod (200) Targeting Computer Light Armor Plating Light Armor Plating Hacking Suite Particle Gun Particle Gun Light Assault Rifle Light Assault Rifle Light Assault Rifle Datajack Peak State ------------ > --- POWER ------------ Light Nuclear Core > --- PROPULSION ------- Light Treads Improved Treads > --- UTILITY ---------- Large Storage Unit Signal Interpreter > --- WEAPON ----------- Light Assault Rifle Light Assault Rifle > --- INVENTORY -------- Light Ion Engine Light Nuclear Core Light Treads Improved Heat Sink Medium Storage Unit High-capacity Matter Pod Power Shielding Light Armor Plating Small Laser Small Laser Small Laser Particle Gun Particle Gun Light Assault Rifle Datajack [Rating: 12] Favorites ----------- Power Light Nuclear Core Engine Light Ion Engine Power Core Light Nuclear Core Propulsion Light Treads Treads Light Treads Utility Signal Interpreter Device Improved Terrain Scanner Storage Large Storage Unit Processor Signal Interpreter Weapon Light Assault Rifle Energy Gun EM Pulse Gun Ballistic Gun Light Assault Rifle Launcher Grenade Launcher Build | -11 -10 -10 ------- Run | Scr Mat Min Slots Evolved . | . . . Power . | . . . Propulsion . | . . . Utility . | . . . Weapon . | . . . Parts Attached 21 | 7 13 1 Power 3 | 1 2 . Engine 2 | 1 1 . Core 1 | . 1 . Reactor . | . . . Propulsion 5 | 2 3 . Treads 5 | 2 3 . Leg . | . . . Wheel . | . . . Hover . | . . . Flight . | . . . Utility 5 | 2 3 . Device 1 | 1 . . Storage 3 | 1 2 . Processor 1 | . 1 . Hackware . | . . . Protection . | . . . Artifact . | . . . Weapon 8 | 2 5 1 Energy Gun 3 | 1 2 . Energy Cannon . | . . . Ballistic Gun 4 | 1 3 . Ballistic Cannon . | . . . Launcher 1 | . . 1 Special Weapon . | . . . Impact Weapon . | . . . Slashing Weapon . | . . . Piercing Weapon . | . . . Special Melee Weapon . | . . . Unidentified Prototypes . | . . . Parts Lost 7 | . 4 3 Power 2 | . 1 1 Propulsion 2 | . 1 1 Utility 1 | . 1 . Weapon 2 | . 1 1 Highest Loss Streak 3 | . 2 3 To Critical Strikes . | . . . Average Slot Usage (%) 98 | . 98 100 Engine 5 | . 5 . Core 7 | . 7 14 Treads 28 | . 28 28 Device 2 | . 2 . Storage 14 | . 14 14 Processor 10 | . 10 14 Energy Gun 5 | . 6 . Ballistic Gun 21 | . 21 25 Naked Turns . | . . . Heaviest Build 27 | 12 27 27 Greatest Support 43 | 40 43 43 Greatest Overweight (x) . | . . . Average Overweight (x) . | . . . Largest Inventory Capacity 15 | 8 15 15 Average Capacity 11 | 7 12 15 Most Carried 15 | 1 15 15 Average Carried 8 | . 9 15 Final Capacity 15 | 8 15 15 Final Carried 15 | 1 15 15 Class Distribution -------------------- 100% | Mutant Dominant Class ---------------- Mutant | -10/Materials Mutant | -10/Mines Resources | -11 -10 -10 ----------- Run | Scr Mat Min Matter Collected 693 | 280 413 . Remotely . | . . . Salvage Created 1061 | 128 897 36 Parts 50 | 6 44 . Haulers Intercepted 1 | . 1 . Recyclers Shooed 1 | . 1 . Parts Field Recycled . | . . . Retrieved Matter . | . . . Parts Self-Destructed . | . . . Prevented . | . . . Kills | -11 -10 -10 ------- Run | Scr Mat Min Combat Hostiles Destroyed 20 | . 15 5 Guns 15 | . 15 . AOE 5 | . . 5 Classes Destroyed 7 | 2 4 1 Tunneler 2 | 2 . . Hauler 1 | . 1 . Recycler 2 | 1 1 . Operator 3 | . 3 . Watcher 1 | . 1 . Grunt 15 | . 15 . Assembled 5 | . . 5 Best Kill Streak 5 | 2 3 5 Combat Bots Only 5 | . 3 5 Max Kills in Single Turn 2 | 1 1 2 Gunslinging . | . . . Exploded 2 | . . 2 Melee . | . . . Uniques/NPCs Destroyed . | . . . Combat | -11 -10 -10 -------- Run | Scr Mat Min Damage Taken 1020 | . 676 344 Core 259 | . 133 126 Absorbed by Shields . | . . . Regen/Repaired (Parts) 72 | . 72 . Core Remaining (%) 100 | 100 . . Volleys Fired 93 | 10 80 3 Largest 2 | 2 2 1 Hottest 85 | 60 85 30 Shots Fired 182 | 20 159 3 Gun 179 | 20 159 . Cannon . | . . . Launcher 3 | . . 3 Special . | . . . Kinetic 123 | 10 113 . Thermal 24 | . 24 . Explosive 3 | . . 3 Electromagnetic 32 | 10 22 . Robot Hit Streak 16 | 5 16 1 Robot Miss Streak 3 | 1 3 1 Penetration Max . | . . . Secondary Targets . | . . . Shots Hit Robots 125 | 14 110 1 Core Hits 64 | 5 49 10 Critical Kills 1 | . 1 . Critical Parts Destroyed . | . . . Critical Strikes 3 | . 3 . Destroy 1 | . 1 . Corrupt 2 | . 2 . Melee Attacks . | . . . Impact . | . . . Slashing . | . . . Piercing . | . . . Sneak Attacks . | . . . Combat Hostiles . | . . . Follow-up Attacks . | . . . Damage Inflicted 1561 | 193 1102 266 Guns 1214 | 160 1054 . Cannons . | . . . Explosions 345 | 33 46 266 Melee . | . . . Ramming 2 | . 2 . Kinetic 726 | 61 665 . Thermal 256 | 33 223 . Explosive 266 | . . 266 Electromagnetic 311 | 99 212 . Impact . | . . . Slashing . | . . . Piercing . | . . . Highest Corruption . | . . . Average Corruption . | . . . Corruption Purged . | . . . Corruption Blocked . | . . . Overload Shots . | . . . Overflow Damage . | . . . Projectiles . | . . . Explosions . | . . . Melee . | . . . Knockbacks . | . . . Impact . | . . . Kinetic . | . . . Secondary . | . . . Self-Inflicted Damage 38 | . . 38 Shots 1 | . . 1 Rammed 2 | . 2 . Targets Rammed 2 | . 2 . Kicked . | . . . Crushed . | . . . Highest Temperature 132 | 40 132 . Average Temperature 26 | 20 27 . Received Heat Transfer 393 | . 393 . Siege Activations . | . . . Robots Corrupted . | . . . Combat Hostiles . | . . . Parts Fried 3 | 1 2 . Impact Corruptions . | . . . Robots Melted . | . . . Combat Hostiles . | . . . Parts Melted 2 | . 2 . Heat Transferred 500 | 50 450 . Parts Sabotaged . | . . . Parts Stolen . | . . . Parts Stripped . | . . . Power Chain Reactions 2 | 1 1 . Missiles Intercepted . | . . . Alert | -11 -10 -10 ------- Run | Scr Mat Min Peak Influence 263 | 15 263 80 Initial 24 | . 9 24 Average 104 | 5 114 27 Maximum Alert Level 1 | . 1 . Low Security (%) 97 | 100 96 100 Level 1 2 | . 3 . Level 2 . | . . . Level 3 . | . . . Level 4 . | . . . Level 5 . | . . . High Security . | . . . Max Security . | . . . Squads Dispatched 5 | . 5 . Investigation 2 | . 2 . Extermination . | . . . Reinforcement 3 | . 3 . Assault . | . . . Garrison . | . . . Intercept . | . . . Searches Triggered . | . . . Construction Impeded . | . . . Haulers Reinforced . | . . . Active Scanning Responses . | . . . Cargo Convoy Interrupts . | . . . Stealth | -11 -10 -10 --------- Run | Scr Mat Min Distress Signals 1 | . 1 . Communications Jammed . | . . . Distress Signals . | . . . Times Spotted 37 | . 24 13 Peak Tracking Total 14 | . 4 14 Tactical Retreats . | . . . Traps | -11 -10 -10 ------- Run | Scr Mat Min Traps Triggered 2 | . 2 . Indirectly . | . . . Trap Hack Attempts . | . . . Triggered . | . . . Disarmed . | . . . Reprogrammed . | . . . Reused . | . . . Traps Extracted . | . . . Installed . | . . . Triggered 1 | . 1 . Machines | -11 -10 -10 ---------- Run | Scr Mat Min Machines Disabled 2 | . 2 . Max in Single Turn 1 | . 1 . Machines Sabotaged . | . . . Garrisons Compromised . | . . . Overloaded Fab Kills . | . . . Hacking | -11 -10 -10 --------- Run | Scr Mat Min Machines Accessed 8 | . 8 . Terminals 5 | . 5 . Fabricators . | . . . Repair Stations 1 | . 1 . Recycling Units 2 | . 2 . Scanalyzers . | . . . Garrison Access . | . . . Total Hacks 28 | . 28 . Successful 14 | . 14 . Failed 13 | . 13 . Catastrophic 1 | . 1 . Database Lockouts 1 | . 1 . Manual 16 | . 16 . Terminals 18 | . 18 . Fabricators . | . . . Repair Stations 5 | . 5 . Recycling Units 5 | . 5 . Scanalyzers . | . . . Garrison Access . | . . . Terminal Hacks 4 | . 4 . Robot Analysis 3 | . 3 . Prototype ID Bank 1 | . 1 . Fabricator Hacks . | . . . Repair Station Hacks 4 | . 4 . Scan Component 3 | . 3 . Repair 1 | . 1 . Recycling Unit Hacks 2 | . 2 . Retrieve Components 2 | . 2 . Scanalyzer . | . . . Garrison Access Hacks . | . . . Unauthorized Hacks 4 | . 4 . Terminals 4 | . 4 . Botnet 3 | . 3 . Operators 1 | . 1 . Fabricators . | . . . Repair Stations . | . . . Recycling Units . | . . . Scanalyzers . | . . . Garrison Access . | . . . Data Cores Recovered . | . . . Used . | . . . Hacking Detections 8 | . 8 . Full Trace Events 5 | . 5 . Feedback Events . | . . . Feedback Blocked . | . . . Robot Schematics Acquired . | . . . Robots Built . | . . . Authchips . | . . . Time . | . . . Total Robot Build Rating . | . . . Part Schematics Acquired . | . . . Parts Built . | . . . Authchips . | . . . Time . | . . . Total Part Build Rating . | . . . Parts Repaired 1 | . 1 . Time 32 | . 32 . Parts Recycled . | . . . Recycled Matter . | . . . Retrieved Matter . | . . . Retrieved Components 3 | . 3 . Parts Scanalyzed . | . . . Part Schematics Acquired . | . . . Parts Damaged . | . . . Bothacking | -11 -10 -10 ------------ Run | Scr Mat Min Used RIF Installer . | . . . Robots Hacked . | . . . Non-combat . | . . . Combat . | . . . Robot Hacks Applied . | . . . Relay Couplers Released . | . . . Fabnet Peak Effective % . | . . . Robots Rewired . | . . . Allies Hacked . | . . . Hacks Repelled . | . . . Allies | -11 -10 -10 -------- Run | Scr Mat Min Total Allies . | . . . Largest Group . | . . . Highest-Rated Group . | . . . Highest-Rated Ally . | . . . Total Orders . | . . . Ally Attacks . | . . . Total Damage . | . . . Kills . | . . . Allies Corrupted . | . . . Allies Melted . | . . . Intel | -11 -10 -10 ------- Run | Scr Mat Min Robot Analysis Total 3 | . 3 . Derelict Logs Recovered . | . . . Drone Launches . | . . . Drone Recoveries . | . . . Exploration | -11 -10 -10 ------------- Run | Scr Mat Min Turns Passed 1485 | 96 1333 56 Spaces Moved 703 | 39 633 31 Core 4 | 4 . . Treads 699 | 35 633 31 Legs . | . . . Wheels . | . . . Hover . | . . . Flight . | . . . Fastest Speed 50 | 50 160 160 Average Speed 159 | 148 160 160 Slowest Speed 160 | 160 160 160 Overloaded Moves . | . . . Propulsion Burnouts . | . . . Robots Hopped . | . . . Cave-ins Triggered . | . . . Exploration Rate (%) 36 | 3 95 12 Regions Visited 2 Branch Regions 1 Pre-discovered Areas . | . . . Known Exits Taken 1 | . 1 . Unknown Exits Taken 1 | 1 . . Scrap Searched . | . . . Spaces Dug . | . . . Terrain Destroyed 34 | 6 2 26 Melee . | . . . Projectile . | . . . AOE 34 | 6 2 26 Terrain Rammed . | . . . Walls Destroyed . | . . . Machines Disabled . | . . . Actions | -11 -10 -10 --------- Run | Scr Mat Min Total 911 | 56 820 35 Wait 57 | . 57 . Move 701 | 38 632 31 Hop . | . . . Pick Up 22 | 1 21 . Fast Attach 11 | 7 4 . Attach 4 | . 4 . Detach 4 | . 4 . Swap 6 | . 5 1 Drop 11 | . 11 . Fire 93 | 10 80 3 Melee . | . . . Ram . | . . . Kick . | . . . Crush 2 | . 2 . Escape Stasis . | . . . Rewire . | . . . Trap . | . . . Miscellaneous . | . . . Route ------- -11/Scrapyard -10/Materials (discovered 3 exits: *Mat x2 / *Min) -10/Mines History --------- Turn | Location | Event 29 | -11/Scrapyard | Discovered new exit (range 15) 97 | -11/Scrapyard | Entered Materials 321 | -10/Materials | Build established: Mutant 347 | -10/Materials | Repaired Imp. Treads 431 | -10/Materials | Discovered new exit (range 3) 460 | -10/Materials | Identified exit to Materials 689 | -10/Materials | Discovered exit to Materials (range 16) 945 | -10/Materials | Core integrity fell below 50% 999 | -10/Materials | Discovered new exit (range 13) 1145 | -10/Materials | Identified exit to Mines 1188 | -10/Materials | Central database locked down 1430 | -10/Materials | Entered Mines 1473 | -10/Mines | Assembled infested the area 1485 | -10/Mines | Core integrity fell below 20% 1486 | -10/Mines | Destroyed by as-61238 with Assembled Heavy Rifle Last Messages --------------- 01428_ K-01 Serf collects debris. LOCATION=MINES GOAL=ESCAPE Something is scanning the area. 01431_ K-01 Serf collects debris. 01439_ K-01 Serf cleans the Core Extractor. 01440_ K-01 Serf collects debris. 01445_ K-01 Serf cleans the Core Extractor. 01473_ ALERT: Infestation in the mines, dispatching Demolisher response squad. 01480_ as-87633 destroyed. 01480_ as-35770 destroyed. 01480_ Lgt. Nuclear Core destroyed. 01480_ Destroyed Lgt. Nuclear Core. 01481_ K-01 Serf collects debris. 01482_ as-28070 destroyed. 01482_ as-33144 destroyed. 01484_ as-83263 destroyed. 01484_ K-01 Serf collects debris. 01485_ Grenade Launcher destroyed. 01486_ Imp. Treads destroyed. Map ----- +----------------------------------------------------+ | ?????????????????????????????# #????????????? | | ?????????????????????????????# #????????????? | | ?????????????????????????????# #????????????? | | ?????????????????????????????# """ #????????????? | | ?????????????????????????????# """ #????????????? | | ?????????????????????????????# """ #????????????? | | ?????????????????????????????# #????????????? | | ?????????????????????????????## #####????????????? | | ???????????????????????????#### #????????????????? | | ???????????????????????????# #????????????????? | | ???????????????????????????# ## #????????????????? | | ???????????????????????????# ## #????????????????? | | ???????????????????????????# ## ????????????????? | | ????????????????????????#### #####???????????????? | | ???????????????????????## #??????????????????? | | ???????????????????????# k #??????????????????? | | ???????????????????????# #??????????????????? | | ???????????????????????# ##??????????????????? | | ???????????????????????# ##??????????????????? | | ???????????????????????# ##?????????????????? | | ???????????????????????# ##????????????????? | | ???????????????????????# """ #????????????????? | | ???????????????????????# """ ##???????????????? | | ??????????????????????## """ #???????????????? | | ??????????????????# ### """ #???????????????? | | ??????????????????# @ ##???????????????? | | ??????????????????###### a ####????????????????? | | ??????????????????????# %% #???????????????????? | | ??????????????????????# #???????????????????? | | ??????????????????????## % ##???????????????????? | | ??????????????????????? #????????????????????? | | ?????????????????????? #????????????????????? | | ?????????????????????? #????????????????????? | | ????????????????????? #????????????????????? | | ???????????????????? ##????????????????????? | | ????????????????????## aa #?????????????????????? | | ????????????????????? ##?????????????????????? | | ?????????????????????# aa ???????????????????????? | | ????????????????????? #???????????????????????? | | ?????????????????????##aa????????????????????????? | | ??????????????????????? ????????????????????????? | | ?????????????????????????????????????????????????? | | ?????????????????????????????????????????????????? | | ?????????????????????????????????????????????????? | | ?????????????????????????????????????????????????? | | ?????????????????????????????????????????????????? | | ?????????????????????????????????????????????????? | | ?????????????????????????????????????????????????? | | ?????????????????????????????????????????????????? | | ?????????????????????????????????????????????????? | +----------------------------------------------------+ Best States ------------- Heat Dissipation 25 Energy Generation 14 Energy Capacity 160 Matter Stores 300 Matter Capacity 300 Sight Range 16 Terrain Scan Range 16 Terrain Scan Density 10 Evasion (%) 40 Recoil Reduction 2 Item Schematics ----------------- None Robot Schematics ------------------ None Fabricated ------------ Nothing Alien Tech Used ----------------- None Achievements -------------- None Challenges ------------ None Game ------ Seed SlugMissileWheel Manual? 0 Play Time 00:10:41 Cumulative 472.8 hours Start 2022.04.23 @ 12:48:31 End 2022.04.23 @ 12:59:07 Sessions 1 Manual Loads 0 Difficulty Rogue Special Mode None Game No. 388 Rogue 388 Adventurer 0 Explorer 0 Win Type - Total 3 Types 2/0/0/1/0/0/0/0/0 Lore% 68 Gallery% 77 Achievement% 66 Wizard Run 0 Options --------- ASCII 0 Keyboard 1 Movement Numpad Keybinds 0 Fullscreen 1 Font 12/Terminus Map View 83x54 Tactical HUD 1 Map Filters NONE Filters NONE Steam 1 RUN: f698b83d-8ab3-41cc-bee1-b71d2b0b9b65